[Event "Titled Tuesday Blitz August 22 Early 2023"]
[White "Gubajdullin, Alexei"]
[Black "Herzog2012"]
[WhiteFideId "4141202"]
[WhiteElo "2659"]
[BlackElo "2444"]
[Result "1-0"]
[Round "4"]
[TimeControl "180+1"]
[Date "2023.08.22"]
[WhiteClock "0:00:46"]
[BlackClock "0:00:00"]
[Board "120"]

1. d4 {[%clk 0:03:00]}  Nf6 {[%clk 0:02:58]} 2. Nf3 {[%clk 0:03:00]}  e6 {[%clk 0:02:57]} 3. Bf4 {[%clk 0:03:00]}  c5 {[%clk 0:02:57]} 4. e3 {[%clk 0:03:00]}  Qb6 {[%clk 0:02:57]} 5. Nc3 {[%clk 0:02:59]}  Nc6 {[%clk 0:02:57]} 6. a3 {[%clk 0:02:58]}  a6 {[%clk 0:02:56]} 7. Be2 {[%clk 0:02:50]}  Nh5 {[%clk 0:02:45]} 8. Be5 {[%clk 0:02:48]}  cxd4 {[%clk 0:02:43]} 9. exd4 {[%clk 0:02:48]}  Nxe5 {[%clk 0:02:39]} 10. dxe5 {[%clk 0:02:43]}  d6 {[%clk 0:02:27]} 11. O-O {[%clk 0:02:42]}  dxe5 {[%clk 0:02:22]} 12. Nxe5 {[%clk 0:02:42]}  Nf4 {[%clk 0:02:20]} 13. Bf3 {[%clk 0:02:42]}  Qd6 {[%clk 0:02:19]} 14. Qe1 {[%clk 0:02:41]}  Qc7 {[%clk 0:02:11]} 15. Qe4 {[%clk 0:02:38]}  Bd6 {[%clk 0:02:09]} 16. Nc4 {[%clk 0:02:37]}  Ng6 {[%clk 0:01:50]} 17. Nxd6+ {[%clk 0:02:36]}  Qxd6 {[%clk 0:01:51]} 18. Rfd1 {[%clk 0:02:32]}  Qe5 {[%clk 0:01:50]} 19. Qa4+ {[%clk 0:02:30]}  Ke7 {[%clk 0:01:21]} 20. Qb4+ {[%clk 0:02:29]}  Ke8 {[%clk 0:01:19]} 21. Bxb7 {[%clk 0:02:23]}  Bxb7 {[%clk 0:01:19]} 22. Qxb7 {[%clk 0:02:23]}  Rb8 {[%clk 0:01:19]} 23. Qxa6 {[%clk 0:02:11]}  Rxb2 {[%clk 0:01:14]} 24. Qc6+ {[%clk 0:02:04]}  Kf8 {[%clk 0:00:49]} 25. Rd8+ {[%clk 0:02:02]}  Ke7 {[%clk 0:00:49]} 26. Rd7+ {[%clk 0:02:01]}  Kf6 {[%clk 0:00:46]} 27. Ne4+ {[%clk 0:02:01]}  Kf5 {[%clk 0:00:46]} 28. Rxf7+ {[%clk 0:01:57]}  Kg4 {[%clk 0:00:46]} 29. h3+ {[%clk 0:01:46]}  Kh5 {[%clk 0:00:39]} 30. Re1 {[%clk 0:01:43]}  Kh6 {[%clk 0:00:32]} 31. Qd7 {[%clk 0:01:04]}  Rxc2 {[%clk 0:00:22]} 32. Qd3 {[%clk 0:01:03]}  Rc7 {[%clk 0:00:02]} 33. Qe3+ {[%clk 0:01:02]}  Kh5 {[%clk 0:00:03]} 34. Ng3+ {[%clk 0:00:54]}  Qxg3 {[%clk 0:00:03]} 35. fxg3 {[%clk 0:00:49]}  Rxf7 {[%clk 0:00:02]} 36. g4+ {[%clk 0:00:49]}  Kh4 {[%clk 0:00:03]} 37. Kh2 {[%clk 0:00:49]}  Nf4 {[%clk 0:00:00]} 38. Qe5 {[%clk 0:00:46]} 1-0


[Site "https://www.chess.com"]

[Event "Titled Tuesday Blitz August 22 Early 2023"]
[White "Shuvalova, Polina"]
[Black "Rangel, Daniel"]
[WhiteFideId "24171760"]
[BlackFideId "2124475"]
[WhiteElo "2650"]
[BlackElo "2437"]
[Result "0-1"]
[Round "4"]
[TimeControl "180+1"]
[Date "2023.08.22"]
[WhiteClock "0:00:02"]
[BlackClock "0:00:03"]
[Board "121"]

1. e4 {[%clk 0:02:45]}  c5 {[%clk 0:02:55]} 2. c3 {[%clk 0:02:44]}  g6 {[%clk 0:02:54]} 3. d4 {[%clk 0:02:41]}  cxd4 {[%clk 0:02:55]} 4. cxd4 {[%clk 0:02:42]}  d5 {[%clk 0:02:55]} 5. e5 {[%clk 0:02:39]}  Bg7 {[%clk 0:02:55]} 6. Nf3 {[%clk 0:02:33]}  Bg4 {[%clk 0:02:53]} 7. Bb5+ {[%clk 0:02:31]}  Nc6 {[%clk 0:02:50]} 8. O-O {[%clk 0:02:29]}  e6 {[%clk 0:02:49]} 9. Bxc6+ {[%clk 0:02:26]}  bxc6 {[%clk 0:02:50]} 10. Nbd2 {[%clk 0:02:27]}  Ne7 {[%clk 0:02:49]} 11. b3 {[%clk 0:02:27]}  O-O {[%clk 0:02:49]} 12. Ba3 {[%clk 0:02:27]}  Re8 {[%clk 0:02:44]} 13. Rc1 {[%clk 0:02:26]}  Qa5 {[%clk 0:02:36]} 14. Bxe7 {[%clk 0:02:19]}  Rxe7 {[%clk 0:02:37]} 15. Qc2 {[%clk 0:02:18]}  Rc7 {[%clk 0:02:28]} 16. h3 {[%clk 0:02:16]}  Bf5 {[%clk 0:02:27]} 17. Qc3 {[%clk 0:02:12]}  Qxa2 {[%clk 0:02:16]} 18. g4 {[%clk 0:02:10]}  Be4 {[%clk 0:02:07]} 19. Nxe4 {[%clk 0:02:09]}  dxe4 {[%clk 0:02:08]} 20. Nd2 {[%clk 0:02:10]}  Bh6 {[%clk 0:01:56]} 21. Rc2 {[%clk 0:02:01]}  Bxd2 {[%clk 0:01:34]} 22. Rxd2 {[%clk 0:02:02]}  Qa3 {[%clk 0:01:31]} 23. Ra1 {[%clk 0:02:00]}  Qe7 {[%clk 0:01:30]} 24. Qe3 {[%clk 0:01:55]}  Qh4 {[%clk 0:01:26]} 25. Kg2 {[%clk 0:01:52]}  Rb8 {[%clk 0:01:26]} 26. Ra3 {[%clk 0:01:49]}  Rcb7 {[%clk 0:01:23]} 27. Rc2 {[%clk 0:01:44]}  Rb6 {[%clk 0:01:13]} 28. Rc3 {[%clk 0:01:43]}  R8b7 {[%clk 0:01:12]} 29. Qxe4 {[%clk 0:01:42]}  h5 {[%clk 0:01:10]} 30. Rf3 {[%clk 0:01:18]}  hxg4 {[%clk 0:01:07]} 31. hxg4 {[%clk 0:01:19]}  Qg5 {[%clk 0:01:01]} 32. Rg3 {[%clk 0:01:11]}  Kg7 {[%clk 0:00:59]} 33. Re3 {[%clk 0:01:10]}  Rb4 {[%clk 0:00:52]} 34. Rg3 {[%clk 0:00:54]}  Rd7 {[%clk 0:00:48]} 35. Ra4 {[%clk 0:00:46]}  Rdxd4 {[%clk 0:00:38]} 36. Rxb4 {[%clk 0:00:46]}  Rxe4 {[%clk 0:00:38]} 37. Rxe4 {[%clk 0:00:47]}  Qd2 {[%clk 0:00:37]} 38. Rc4 {[%clk 0:00:44]}  Qd5+ {[%clk 0:00:36]} 39. Rf3 {[%clk 0:00:44]}  Qxe5 {[%clk 0:00:36]} 40. Rxc6 {[%clk 0:00:43]}  Qe4 {[%clk 0:00:34]} 41. Rc4 {[%clk 0:00:43]}  Qd5 {[%clk 0:00:32]} 42. Kg3 {[%clk 0:00:39]}  f5 {[%clk 0:00:27]} 43. g5 {[%clk 0:00:33]}  Qd6+ {[%clk 0:00:20]} 44. Kg2 {[%clk 0:00:33]}  Qe7 {[%clk 0:00:18]} 45. Rg3 {[%clk 0:00:33]}  e5 {[%clk 0:00:17]} 46. Kh1 {[%clk 0:00:21]}  f4 {[%clk 0:00:16]} 47. Rg2 {[%clk 0:00:22]}  Qd7 {[%clk 0:00:14]} 48. Kh2 {[%clk 0:00:17]}  Kf7 {[%clk 0:00:12]} 49. f3 {[%clk 0:00:17]}  Ke6 {[%clk 0:00:12]} 50. Re2 {[%clk 0:00:14]}  Kf5 {[%clk 0:00:11]} 51. Rc5 {[%clk 0:00:10]}  Qd6 {[%clk 0:00:08]} 52. b4 {[%clk 0:00:09]}  a6 {[%clk 0:00:07]} 53. Kg2 {[%clk 0:00:09]}  Qe7 {[%clk 0:00:07]} 54. Ra5 {[%clk 0:00:08]}  Qxg5+ {[%clk 0:00:06]} 55. Kf1 {[%clk 0:00:08]}  Qf6 {[%clk 0:00:07]} 56. Kf2 {[%clk 0:00:08]}  Qb6+ {[%clk 0:00:07]} 57. Kf1 {[%clk 0:00:08]}  Qd6 {[%clk 0:00:06]} 58. Rc5 {[%clk 0:00:06]}  g5 {[%clk 0:00:06]} 59. Kf2 {[%clk 0:00:06]}  Qd4+ {[%clk 0:00:06]} 60. Kf1 {[%clk 0:00:06]}  Qd6 {[%clk 0:00:06]} 61. Kf2 {[%clk 0:00:06]}  g4 {[%clk 0:00:05]} 62. fxg4+ {[%clk 0:00:06]}  Kxg4 {[%clk 0:00:06]} 63. Rcxe5 {[%clk 0:00:06]}  Qd4+ {[%clk 0:00:05]} 64. Kf1 {[%clk 0:00:05]}  Qxb4 {[%clk 0:00:05]} 65. R5e4 {[%clk 0:00:05]}  Qb1+ {[%clk 0:00:05]} 66. Kf2 {[%clk 0:00:06]}  Qb6+ {[%clk 0:00:06]} 67. Kf1 {[%clk 0:00:06]}  a5 {[%clk 0:00:05]} 68. Ra4 {[%clk 0:00:02]}  Kf3 {[%clk 0:00:03]} 69. Rf2+ {[%clk 0:00:02]}  Qxf2# {[%clk 0:00:03]} 0-1


[Site "https://www.chess.com"]

[Event "Titled Tuesday Blitz August 22 Early 2023"]
[White "Khromkin, Andrey"]
[Black "Sadykov, Ramil"]
[WhiteFideId "4154126"]
[BlackFideId "24113590"]
[WhiteElo "2420"]
[BlackElo "2612"]
[Result "0-1"]
[Round "4"]
[TimeControl "180+1"]
[Date "2023.08.22"]
[WhiteClock "0:00:01"]
[BlackClock "0:00:51"]
[Board "123"]

1. d4 {[%clk 0:02:59]}  Nf6 {[%clk 0:02:59]} 2. c4 {[%clk 0:03:00]}  e6 {[%clk 0:03:00]} 3. Nf3 {[%clk 0:03:00]}  Bb4+ {[%clk 0:03:00]} 4. Bd2 {[%clk 0:03:00]}  Qe7 {[%clk 0:03:00]} 5. g3 {[%clk 0:03:01]}  O-O {[%clk 0:02:52]} 6. Bg2 {[%clk 0:03:01]}  Bxd2+ {[%clk 0:02:53]} 7. Qxd2 {[%clk 0:03:00]}  d6 {[%clk 0:02:51]} 8. Nc3 {[%clk 0:03:01]}  e5 {[%clk 0:02:50]} 9. dxe5 {[%clk 0:02:58]}  dxe5 {[%clk 0:02:50]} 10. Nd5 {[%clk 0:02:58]}  Nxd5 {[%clk 0:02:50]} 11. cxd5 {[%clk 0:02:59]}  e4 {[%clk 0:02:33]} 12. Nd4 {[%clk 0:02:47]}  Rd8 {[%clk 0:02:31]} 13. Nc2 {[%clk 0:02:31]}  Nd7 {[%clk 0:02:27]} 14. Rd1 {[%clk 0:02:04]}  Nf6 {[%clk 0:02:24]} 15. Qe3 {[%clk 0:01:25]}  Bf5 {[%clk 0:02:16]} 16. O-O {[%clk 0:01:22]}  Nxd5 {[%clk 0:02:10]} 17. Qb3 {[%clk 0:01:13]}  c6 {[%clk 0:02:07]} 18. Rd4 {[%clk 0:00:51]}  Rd7 {[%clk 0:01:55]} 19. Rfd1 {[%clk 0:00:46]}  Rad8 {[%clk 0:01:55]} 20. Qa4 {[%clk 0:00:40]}  a6 {[%clk 0:01:48]} 21. Bxe4 {[%clk 0:00:19]}  b5 {[%clk 0:01:35]} 22. Bxf5 {[%clk 0:00:11]}  bxa4 {[%clk 0:01:35]} 23. Bxd7 {[%clk 0:00:11]}  Rxd7 {[%clk 0:01:35]} 24. e4 {[%clk 0:00:11]}  Nb6 {[%clk 0:01:33]} 25. Ne3 {[%clk 0:00:10]}  Rxd4 {[%clk 0:01:26]} 26. Rxd4 {[%clk 0:00:10]}  g6 {[%clk 0:01:27]} 27. h4 {[%clk 0:00:09]}  Qc5 {[%clk 0:01:20]} 28. Rd8+ {[%clk 0:00:08]}  Kg7 {[%clk 0:01:20]} 29. Ng4 {[%clk 0:00:07]}  Qc1+ {[%clk 0:01:12]} 30. Kh2 {[%clk 0:00:03]}  Qxb2 {[%clk 0:01:12]} 31. e5 {[%clk 0:00:02]}  h5 {[%clk 0:01:09]} 32. Nf6 {[%clk 0:00:01]}  Qxe5 {[%clk 0:00:51]} 33. Ne8+ {[%clk 0:00:01]} 0-1


[Site "https://www.chess.com"]

[Event "Titled Tuesday Blitz August 22 Early 2023"]
[White "Nosacheva, Mariya"]
[Black "Arabidze, Meri"]
[WhiteFideId "34111422"]
[BlackFideId "13604040"]
[WhiteElo "2411"]
[BlackElo "2577"]
[Result "0-1"]
[Round "4"]
[TimeControl "180+1"]
[Date "2023.08.22"]
[WhiteClock "0:00:03"]
[BlackClock "0:01:04"]
[Board "126"]

1. e4 {[%clk 0:02:56]}  c5 {[%clk 0:03:00]} 2. Nf3 {[%clk 0:02:55]}  e6 {[%clk 0:03:00]} 3. d4 {[%clk 0:02:55]}  cxd4 {[%clk 0:03:01]} 4. Nxd4 {[%clk 0:02:55]}  Nc6 {[%clk 0:03:01]} 5. Nb5 {[%clk 0:02:54]}  d6 {[%clk 0:03:01]} 6. c4 {[%clk 0:02:52]}  Nf6 {[%clk 0:03:01]} 7. N1c3 {[%clk 0:02:25]}  a6 {[%clk 0:03:02]} 8. Na3 {[%clk 0:02:25]}  Be7 {[%clk 0:03:02]} 9. Be2 {[%clk 0:02:25]}  O-O {[%clk 0:03:03]} 10. O-O {[%clk 0:02:25]}  b6 {[%clk 0:03:04]} 11. Be3 {[%clk 0:02:18]}  Bb7 {[%clk 0:03:04]} 12. Nc2 {[%clk 0:02:16]}  Ne5 {[%clk 0:03:03]} 13. f4 {[%clk 0:02:10]}  Ned7 {[%clk 0:03:02]} 14. Bd3 {[%clk 0:01:59]}  Nc5 {[%clk 0:02:59]} 15. e5 {[%clk 0:01:52]}  dxe5 {[%clk 0:02:57]} 16. Be2 {[%clk 0:01:48]}  exf4 {[%clk 0:02:52]} 17. Bxf4 {[%clk 0:01:45]}  Nce4 {[%clk 0:02:46]} 18. Nxe4 {[%clk 0:01:36]}  Nxe4 {[%clk 0:02:47]} 19. Qe1 {[%clk 0:01:25]}  Bc5+ {[%clk 0:02:47]} 20. Kh1 {[%clk 0:01:24]}  f5 {[%clk 0:02:19]} 21. Rd1 {[%clk 0:01:11]}  Qf6 {[%clk 0:02:19]} 22. b4 {[%clk 0:01:08]}  Be7 {[%clk 0:02:18]} 23. Be3 {[%clk 0:00:57]}  e5 {[%clk 0:02:13]} 24. Bg4 {[%clk 0:00:46]}  Qg6 {[%clk 0:02:11]} 25. Bf3 {[%clk 0:00:46]}  Rad8 {[%clk 0:02:02]} 26. Bg1 {[%clk 0:00:38]}  Rxd1 {[%clk 0:01:55]} 27. Qxd1 {[%clk 0:00:35]}  Qh6 {[%clk 0:01:46]} 28. Qe1 {[%clk 0:00:20]}  Bh4 {[%clk 0:01:45]} 29. Qd1 {[%clk 0:00:13]}  Ng3+ {[%clk 0:01:39]} 30. hxg3 {[%clk 0:00:13]}  Bxg3+ {[%clk 0:01:40]} 31. Bh5 {[%clk 0:00:13]}  g6 {[%clk 0:01:38]} 32. Bxb6 {[%clk 0:00:14]}  gxh5 {[%clk 0:01:26]} 33. Bc5 {[%clk 0:00:13]}  Qg5 {[%clk 0:01:13]} 34. Kg1 {[%clk 0:00:08]}  Bh2+ {[%clk 0:01:12]} 35. Kf2 {[%clk 0:00:08]}  Qxg2+ {[%clk 0:01:11]} 36. Ke1 {[%clk 0:00:08]}  Bg3+ {[%clk 0:01:11]} 37. Rf2 {[%clk 0:00:07]}  Bxf2+ {[%clk 0:01:11]} 38. Bxf2 {[%clk 0:00:08]}  Qh1+ {[%clk 0:01:05]} 39. Kd2 {[%clk 0:00:03]}  Rd8+ {[%clk 0:01:04]} 0-1


[Site "https://www.chess.com"]

[Event "Titled Tuesday Blitz August 22 Early 2023"]
[White "Manukian, Artak"]
[Black "Yurovskykh, Oleksandr"]
[WhiteFideId "13301373"]
[BlackFideId "14134020"]
[WhiteElo "2395"]
[BlackElo "2574"]
[Result "0-1"]
[Round "4"]
[TimeControl "180+1"]
[Date "2023.08.22"]
[WhiteClock "0:00:28"]
[BlackClock "0:00:08"]
[Board "127"]

1. e4 {[%clk 0:02:59]}  d5 {[%clk 0:02:57]} 2. exd5 {[%clk 0:02:58]}  Nf6 {[%clk 0:02:57]} 3. Nc3 {[%clk 0:02:56]}  Nxd5 {[%clk 0:02:55]} 4. Bc4 {[%clk 0:02:50]}  Nb6 {[%clk 0:02:50]} 5. Bb3 {[%clk 0:02:49]}  Nc6 {[%clk 0:02:49]} 6. Qf3 {[%clk 0:02:49]}  e6 {[%clk 0:02:46]} 7. Nge2 {[%clk 0:02:46]}  Be7 {[%clk 0:02:40]} 8. d4 {[%clk 0:02:43]}  O-O {[%clk 0:02:39]} 9. h4 {[%clk 0:02:36]}  Na5 {[%clk 0:02:05]} 10. Bg5 {[%clk 0:02:27]}  Nxb3 {[%clk 0:02:02]} 11. axb3 {[%clk 0:02:26]}  f6 {[%clk 0:01:49]} 12. Be3 {[%clk 0:02:23]}  Nd5 {[%clk 0:01:47]} 13. O-O-O {[%clk 0:02:16]}  b6 {[%clk 0:01:39]} 14. Nxd5 {[%clk 0:02:15]}  Qxd5 {[%clk 0:01:39]} 15. Qxd5 {[%clk 0:02:13]}  exd5 {[%clk 0:01:40]} 16. Nc3 {[%clk 0:02:10]}  c6 {[%clk 0:01:40]} 17. Rde1 {[%clk 0:02:07]}  Bd6 {[%clk 0:01:37]} 18. g3 {[%clk 0:02:06]}  Bg4 {[%clk 0:01:36]} 19. Bf4 {[%clk 0:02:05]}  Bxf4+ {[%clk 0:01:33]} 20. gxf4 {[%clk 0:02:06]}  Rae8 {[%clk 0:01:30]} 21. Re3 {[%clk 0:02:04]}  Kf7 {[%clk 0:01:22]} 22. b4 {[%clk 0:02:02]}  Bd7 {[%clk 0:01:02]} 23. Rhe1 {[%clk 0:01:58]}  Rxe3 {[%clk 0:00:59]} 24. fxe3 {[%clk 0:01:55]}  Re8 {[%clk 0:00:58]} 25. Kd2 {[%clk 0:01:54]}  Re7 {[%clk 0:00:57]} 26. b5 {[%clk 0:01:49]}  Be8 {[%clk 0:00:40]} 27. b4 {[%clk 0:01:41]}  cxb5 {[%clk 0:00:27]} 28. Nxd5 {[%clk 0:01:40]}  Rb7 {[%clk 0:00:23]} 29. e4 {[%clk 0:01:38]}  a5 {[%clk 0:00:21]} 30. e5 {[%clk 0:01:27]}  Bc6 {[%clk 0:00:18]} 31. Ne3 {[%clk 0:01:23]}  fxe5 {[%clk 0:00:15]} 32. dxe5 {[%clk 0:01:19]}  g6 {[%clk 0:00:15]} 33. h5 {[%clk 0:01:15]}  Ke6 {[%clk 0:00:14]} 34. hxg6 {[%clk 0:01:14]}  hxg6 {[%clk 0:00:15]} 35. Rg1 {[%clk 0:01:12]}  Be4 {[%clk 0:00:16]} 36. c3 {[%clk 0:01:05]}  a4 {[%clk 0:00:15]} 37. Nc2 {[%clk 0:01:00]}  Bxc2 {[%clk 0:00:12]} 38. Kxc2 {[%clk 0:01:01]}  Rg7 {[%clk 0:00:09]} 39. Rg5 {[%clk 0:00:58]}  Rg8 {[%clk 0:00:09]} 40. f5+ {[%clk 0:00:55]}  Kxe5 {[%clk 0:00:09]} 41. Rxg6 {[%clk 0:00:53]}  Rxg6 {[%clk 0:00:08]} 42. fxg6 {[%clk 0:00:52]}  Kf6 {[%clk 0:00:09]} 43. c4 {[%clk 0:00:39]}  bxc4 {[%clk 0:00:08]} 44. b5 {[%clk 0:00:38]}  Kxg6 {[%clk 0:00:08]} 45. Kc3 {[%clk 0:00:28]}  a3 {[%clk 0:00:08]} 0-1


[Site "https://www.chess.com"]

[Event "Titled Tuesday Blitz August 22 Early 2023"]
[White "Gutkin, Ilya"]
[Black "Postlmayer, Jakob"]
[WhiteFideId "16203470"]
[BlackFideId "1643622"]
[WhiteElo "2375"]
[BlackElo "2549"]
[Result "0-1"]
[Round "4"]
[TimeControl "180+1"]
[Date "2023.08.22"]
[WhiteClock "0:00:01"]
[BlackClock "0:00:21"]
[Board "129"]

1. e4 {[%clk 0:03:00]}  c5 {[%clk 0:02:59]} 2. Nf3 {[%clk 0:03:01]}  d6 {[%clk 0:02:59]} 3. Bb5+ {[%clk 0:03:01]}  Nd7 {[%clk 0:02:59]} 4. O-O {[%clk 0:03:00]}  a6 {[%clk 0:02:58]} 5. Bd3 {[%clk 0:03:00]}  Ngf6 {[%clk 0:02:58]} 6. Re1 {[%clk 0:03:00]}  e6 {[%clk 0:02:58]} 7. Bf1 {[%clk 0:03:00]}  Be7 {[%clk 0:02:53]} 8. c3 {[%clk 0:03:01]}  O-O {[%clk 0:02:48]} 9. d4 {[%clk 0:03:02]}  b5 {[%clk 0:02:47]} 10. a4 {[%clk 0:03:00]}  Bb7 {[%clk 0:02:21]} 11. Nbd2 {[%clk 0:02:39]}  Qb6 {[%clk 0:02:14]} 12. Bd3 {[%clk 0:02:21]}  e5 {[%clk 0:02:10]} 13. a5 {[%clk 0:02:16]}  Qc7 {[%clk 0:02:10]} 14. d5 {[%clk 0:02:16]}  c4 {[%clk 0:02:09]} 15. Bc2 {[%clk 0:02:15]}  Nc5 {[%clk 0:02:07]} 16. Nf1 {[%clk 0:02:13]}  h6 {[%clk 0:01:56]} 17. Ng3 {[%clk 0:02:13]}  Rfe8 {[%clk 0:01:56]} 18. Nf5 {[%clk 0:01:26]}  Bf8 {[%clk 0:01:54]} 19. N3h4 {[%clk 0:01:26]}  Kh7 {[%clk 0:01:47]} 20. Qf3 {[%clk 0:01:22]}  Ng8 {[%clk 0:01:39]} 21. Ng3 {[%clk 0:01:04]}  g6 {[%clk 0:01:33]} 22. Ne2 {[%clk 0:00:50]}  Bc8 {[%clk 0:01:29]} 23. Qg3 {[%clk 0:00:45]}  Bg7 {[%clk 0:01:26]} 24. f4 {[%clk 0:00:40]}  Nf6 {[%clk 0:00:49]} 25. f5 {[%clk 0:00:35]}  g5 {[%clk 0:00:40]} 26. Nf3 {[%clk 0:00:11]}  Ncxe4 {[%clk 0:00:39]} 27. Bxe4 {[%clk 0:00:09]}  Nxe4 {[%clk 0:00:39]} 28. Qh3 {[%clk 0:00:07]}  Qc5+ {[%clk 0:00:36]} 29. Ned4 {[%clk 0:00:02]}  exd4 {[%clk 0:00:34]} 30. Kf1 {[%clk 0:00:01]}  dxc3 {[%clk 0:00:26]} 31. Be3 {[%clk 0:00:02]}  Qxd5 {[%clk 0:00:23]} 32. Rad1 {[%clk 0:00:02]}  Qxf5 {[%clk 0:00:21]} 33. g4 {[%clk 0:00:03]}  Qxg4 {[%clk 0:00:20]} 34. Qxg4 {[%clk 0:00:02]}  Bxg4 {[%clk 0:00:21]} 35. bxc3 {[%clk 0:00:01]}  Bxf3 {[%clk 0:00:21]} 0-1


[Site "https://www.chess.com"]

[Event "Titled Tuesday Blitz August 22 Early 2023"]
[White "Budrewicz, Krzysztof"]
[Black "Battlecruiser_Operational"]
[WhiteFideId "1127950"]
[WhiteElo "2542"]
[BlackElo "2333"]
[Result "1-0"]
[Round "4"]
[TimeControl "180+1"]
[Date "2023.08.22"]
[WhiteClock "0:00:51"]
[BlackClock "0:00:00"]
[Board "131"]

1. d4 {[%clk 0:03:00]}  e6 {[%clk 0:02:58]} 2. c4 {[%clk 0:03:00]}  f5 {[%clk 0:02:58]} 3. Nf3 {[%clk 0:02:56]}  Nf6 {[%clk 0:02:57]} 4. g3 {[%clk 0:02:56]}  Be7 {[%clk 0:02:47]} 5. Bg2 {[%clk 0:02:56]}  O-O {[%clk 0:02:47]} 6. O-O {[%clk 0:02:56]}  d6 {[%clk 0:02:47]} 7. Nc3 {[%clk 0:02:55]}  Qe8 {[%clk 0:02:46]} 8. Qc2 {[%clk 0:02:52]}  Nc6 {[%clk 0:02:35]} 9. a3 {[%clk 0:02:47]}  e5 {[%clk 0:02:30]} 10. dxe5 {[%clk 0:02:45]}  dxe5 {[%clk 0:02:29]} 11. Nd5 {[%clk 0:02:45]}  Bd8 {[%clk 0:02:21]} 12. Bg5 {[%clk 0:02:32]}  e4 {[%clk 0:02:02]} 13. Ne1 {[%clk 0:02:25]}  Nxd5 {[%clk 0:01:37]} 14. Bxd8 {[%clk 0:02:17]}  Qxd8 {[%clk 0:01:08]} 15. cxd5 {[%clk 0:02:16]}  Qxd5 {[%clk 0:01:07]} 16. Rd1 {[%clk 0:02:17]}  Qf7 {[%clk 0:01:04]} 17. f3 {[%clk 0:02:16]}  Be6 {[%clk 0:01:03]} 18. Qc3 {[%clk 0:02:08]}  exf3 {[%clk 0:00:53]} 19. exf3 {[%clk 0:02:05]}  f4 {[%clk 0:00:50]} 20. Nd3 {[%clk 0:02:02]}  Bb3 {[%clk 0:00:38]} 21. Rc1 {[%clk 0:01:57]}  fxg3 {[%clk 0:00:33]} 22. hxg3 {[%clk 0:01:57]}  Rad8 {[%clk 0:00:30]} 23. Nc5 {[%clk 0:01:49]}  Nd4 {[%clk 0:00:21]} 24. Rf2 {[%clk 0:01:41]}  b6 {[%clk 0:00:17]} 25. Nxb3 {[%clk 0:01:40]}  Nxb3 {[%clk 0:00:18]} 26. Re1 {[%clk 0:01:35]}  c5 {[%clk 0:00:18]} 27. f4 {[%clk 0:01:35]}  Nd4 {[%clk 0:00:17]} 28. b4 {[%clk 0:01:32]}  cxb4 {[%clk 0:00:16]} 29. axb4 {[%clk 0:01:31]}  h6 {[%clk 0:00:14]} 30. Rd2 {[%clk 0:01:28]}  Qf6 {[%clk 0:00:15]} 31. Qc4+ {[%clk 0:01:25]}  Kh8 {[%clk 0:00:13]} 32. Red1 {[%clk 0:01:25]}  Ne6 {[%clk 0:00:12]} 33. Bd5 {[%clk 0:01:22]}  Rde8 {[%clk 0:00:10]} 34. Ra2 {[%clk 0:01:10]}  Re7 {[%clk 0:00:09]} 35. Bxe6 {[%clk 0:01:11]}  Qxe6 {[%clk 0:00:09]} 36. Qxe6 {[%clk 0:01:10]}  Rxe6 {[%clk 0:00:10]} 37. Rxa7 {[%clk 0:01:10]}  Rfe8 {[%clk 0:00:10]} 38. Rdd7 {[%clk 0:01:09]}  Rg6 {[%clk 0:00:10]} 39. Kf2 {[%clk 0:01:09]}  Rc8 {[%clk 0:00:10]} 40. Rac7 {[%clk 0:01:08]}  Rxc7 {[%clk 0:00:10]} 41. Rxc7 {[%clk 0:01:08]}  Kg8 {[%clk 0:00:10]} 42. b5 {[%clk 0:01:08]}  Rd6 {[%clk 0:00:10]} 43. Rc6 {[%clk 0:01:05]}  Rd2+ {[%clk 0:00:10]} 44. Ke3 {[%clk 0:01:05]}  Rg2 {[%clk 0:00:10]} 45. Kf3 {[%clk 0:01:05]}  Rb2 {[%clk 0:00:10]} 46. Rxb6 {[%clk 0:01:05]}  Kh7 {[%clk 0:00:11]} 47. Kg4 {[%clk 0:01:03]}  Rb3 {[%clk 0:00:10]} 48. Kh4 {[%clk 0:01:00]}  Rb4 {[%clk 0:00:08]} 49. Kg4 {[%clk 0:01:00]}  Rb3 {[%clk 0:00:08]} 50. Rb7 {[%clk 0:00:59]}  Kg6 {[%clk 0:00:06]} 51. f5+ {[%clk 0:01:00]}  Kf6 {[%clk 0:00:06]} 52. Rb6+ {[%clk 0:01:00]}  Kf7 {[%clk 0:00:06]} 53. Kf4 {[%clk 0:01:00]}  Rb4+ {[%clk 0:00:06]} 54. Ke5 {[%clk 0:01:00]}  Rb3 {[%clk 0:00:06]} 55. Rb7+ {[%clk 0:01:01]}  Kg8 {[%clk 0:00:05]} 56. g4 {[%clk 0:00:57]}  Rb4 {[%clk 0:00:05]} 57. Rb8+ {[%clk 0:00:57]}  Kh7 {[%clk 0:00:05]} 58. b6 {[%clk 0:00:57]}  Rxg4 {[%clk 0:00:04]} 59. Kd6 {[%clk 0:00:55]}  Rb4 {[%clk 0:00:03]} 60. Kc7 {[%clk 0:00:54]}  h5 {[%clk 0:00:03]} 61. Rd8 {[%clk 0:00:54]}  Kh6 {[%clk 0:00:01]} 62. Rb8 {[%clk 0:00:51]}  Kg5 {[%clk 0:00:00]} 63. Rg8 {[%clk 0:00:51]} 1-0


[Site "https://www.chess.com"]

[Event "Titled Tuesday Blitz August 22 Early 2023"]
[White "Gontcharov, Vladislav"]
[Black "Hrescak, Ivana"]
[WhiteFideId "4123492"]
[BlackFideId "14613441"]
[WhiteElo "2537"]
[BlackElo "2294"]
[Result "1-0"]
[Round "4"]
[TimeControl "180+1"]
[Date "2023.08.22"]
[WhiteClock "0:00:50"]
[BlackClock "0:00:07"]
[Board "132"]

1. d4 {[%clk 0:03:00]}  d5 {[%clk 0:02:59]} 2. c4 {[%clk 0:03:00]}  c6 {[%clk 0:02:59]} 3. Nf3 {[%clk 0:03:00]}  Nf6 {[%clk 0:02:59]} 4. e3 {[%clk 0:02:59]}  Bf5 {[%clk 0:02:58]} 5. cxd5 {[%clk 0:02:57]}  cxd5 {[%clk 0:02:57]} 6. Nc3 {[%clk 0:02:57]}  Nc6 {[%clk 0:02:57]} 7. Bb5 {[%clk 0:02:52]}  e6 {[%clk 0:02:50]} 8. Ne5 {[%clk 0:02:49]}  Rc8 {[%clk 0:02:41]} 9. g4 {[%clk 0:02:47]}  Be4 {[%clk 0:01:57]} 10. f3 {[%clk 0:02:47]}  Bg6 {[%clk 0:01:57]} 11. h4 {[%clk 0:02:46]}  h5 {[%clk 0:01:56]} 12. Nxg6 {[%clk 0:02:45]}  fxg6 {[%clk 0:01:56]} 13. Bd3 {[%clk 0:02:32]}  Ne7 {[%clk 0:01:48]} 14. Qa4+ {[%clk 0:02:00]}  Kf7 {[%clk 0:01:36]} 15. gxh5 {[%clk 0:01:51]}  Rxh5 {[%clk 0:01:21]} 16. Bd2 {[%clk 0:01:43]}  Nf5 {[%clk 0:01:13]} 17. O-O-O {[%clk 0:01:41]}  a6 {[%clk 0:01:06]} 18. Kb1 {[%clk 0:01:39]}  Qb6 {[%clk 0:00:53]} 19. Ne2 {[%clk 0:01:33]}  Rxh4 {[%clk 0:00:40]} 20. Nf4 {[%clk 0:01:03]}  Bd6 {[%clk 0:00:19]} 21. Bxf5 {[%clk 0:01:03]}  Rxh1 {[%clk 0:00:18]} 22. Bxg6+ {[%clk 0:01:03]}  Ke7 {[%clk 0:00:17]} 23. Rxh1 {[%clk 0:01:02]}  Bxf4 {[%clk 0:00:17]} 24. exf4 {[%clk 0:01:01]}  Qc7 {[%clk 0:00:13]} 25. Rc1 {[%clk 0:00:54]}  Qd8 {[%clk 0:00:07]} 26. Bb4+ {[%clk 0:00:50]} 1-0


[Site "https://www.chess.com"]